[Event "December 5 Late 2023"]
[Site "https://www.chess.com"]
[Date "2023.12.05"]
[Round "10"]
[White "Kamsky, Gata"]
[Black "Apoorv Kamble"]
[Result "1-0"]
[Board "16"]
[TimeControl "180+1"]
[WhiteFideId "2000024"]
[BlackFideId "25683012"]
[WhiteElo "2918"]
[BlackElo "2677"]
[WhiteTeam "USA"]
[BlackTeam "IND"]
[WhiteClock "0:01:28"]
[BlackClock "0:00:13"]

1. e4 {[%clk 0:03:00]}  c5 {[%clk 0:02:59]} 2. Nc3 {[%clk 0:02:58]}  Nc6 {[%clk 0:02:57]} 3. Nf3 {[%clk 0:02:55]}  e5 {[%clk 0:02:55]} 4. Bc4 {[%clk 0:02:54]}  d6 {[%clk 0:02:50]} 5. d3 {[%clk 0:02:55]}  Be7 {[%clk 0:02:49]} 6. Nd2 {[%clk 0:02:52]}  f5 {[%clk 0:02:42]} 7. exf5 {[%clk 0:02:35]}  Bxf5 {[%clk 0:02:42]} 8. Nde4 {[%clk 0:02:35]}  Qd7 {[%clk 0:02:34]} 9. O-O {[%clk 0:02:26]}  O-O-O {[%clk 0:02:34]} 10. f4 {[%clk 0:02:26]}  Nf6 {[%clk 0:02:26]} 11. Nxf6 {[%clk 0:02:20]}  Bxf6 {[%clk 0:02:27]} 12. Nd5 {[%clk 0:02:19]}  Rdf8 {[%clk 0:01:52]} 13. a4 {[%clk 0:02:11]}  Bd8 {[%clk 0:01:46]} 14. c3 {[%clk 0:02:06]}  h5 {[%clk 0:01:30]} 15. b4 {[%clk 0:02:02]}  cxb4 {[%clk 0:01:28]} 16. cxb4 {[%clk 0:02:02]}  Nd4 {[%clk 0:01:27]} 17. Be3 {[%clk 0:02:00]}  Bg4 {[%clk 0:01:27]} 18. Qd2 {[%clk 0:01:57]}  Ne2+ {[%clk 0:01:15]} 19. Kh1 {[%clk 0:01:56]}  h4 {[%clk 0:01:12]} 20. Rfe1 {[%clk 0:01:33]}  Ng3+ {[%clk 0:01:07]} 21. Kg1 {[%clk 0:01:33]}  Nf5 {[%clk 0:00:56]} 22. Bxa7 {[%clk 0:01:31]}  b6 {[%clk 0:00:14]} 23. Ba6+ {[%clk 0:01:28]}  Qb7 {[%clk 0:00:13]} 1-0

[Event "December 5 Late 2023"]
[Site "https://www.chess.com"]
[Date "2023.12.05"]
[Round "10"]
[White "Alexandre, Anne Shopie Elizabeth"]
[Black "Sturt, Raven"]
[Result "1-0"]
[Board "20"]
[TimeControl "180+1"]
[WhiteFideId "11902418"]
[BlackFideId "2007304"]
[WhiteElo "2864"]
[BlackElo "2660"]
[WhiteTeam "HAI"]
[BlackTeam "USA"]
[WhiteClock "0:00:01"]
[BlackClock "0:00:00"]

1. d4 {[%clk 0:03:00]}  f5 {[%clk 0:02:59]} 2. c4 {[%clk 0:03:01]}  Nf6 {[%clk 0:02:57]} 3. g3 {[%clk 0:03:01]}  g6 {[%clk 0:02:58]} 4. Bg2 {[%clk 0:03:01]}  Bg7 {[%clk 0:02:58]} 5. Nf3 {[%clk 0:03:02]}  O-O {[%clk 0:02:57]} 6. O-O {[%clk 0:03:02]}  d6 {[%clk 0:02:57]} 7. Nc3 {[%clk 0:03:03]}  Qe8 {[%clk 0:02:58]} 8. d5 {[%clk 0:03:00]}  Na6 {[%clk 0:02:58]} 9. Qc2 {[%clk 0:02:57]}  Bd7 {[%clk 0:02:43]} 10. b3 {[%clk 0:02:57]}  Nb4 {[%clk 0:02:33]} 11. Qd2 {[%clk 0:02:55]}  Ne4 {[%clk 0:02:29]} 12. Nxe4 {[%clk 0:02:55]}  Bxa1 {[%clk 0:02:28]} 13. Qxb4 {[%clk 0:02:41]}  fxe4 {[%clk 0:02:27]} 14. Ng5 {[%clk 0:02:41]}  c5 {[%clk 0:01:59]} 15. Qxb7 {[%clk 0:02:35]}  a5 {[%clk 0:01:56]} 16. Nxe4 {[%clk 0:02:05]}  Bg7 {[%clk 0:01:52]} 17. Bd2 {[%clk 0:01:50]}  a4 {[%clk 0:01:52]} 18. bxa4 {[%clk 0:01:48]}  Rxa4 {[%clk 0:01:51]} 19. Qb3 {[%clk 0:01:43]}  Qa8 {[%clk 0:01:48]} 20. Bg5 {[%clk 0:01:43]}  Re8 {[%clk 0:01:42]} 21. Bd2 {[%clk 0:01:29]}  Rxa2 {[%clk 0:01:41]} 22. Bc3 {[%clk 0:01:29]}  Rb8 {[%clk 0:01:20]} 23. Qd1 {[%clk 0:01:28]}  Qa4 {[%clk 0:01:19]} 24. Qd3 {[%clk 0:00:59]}  Ra3 {[%clk 0:01:18]} 25. Qd2 {[%clk 0:00:58]}  Bxc3 {[%clk 0:01:15]} 26. Nxc3 {[%clk 0:00:57]}  Qxc4 {[%clk 0:01:16]} 27. Ne4 {[%clk 0:00:57]}  Bf5 {[%clk 0:01:08]} 28. Ng5 {[%clk 0:00:54]}  Qd4 {[%clk 0:01:05]} 29. Qc1 {[%clk 0:00:53]}  Rc3 {[%clk 0:00:56]} 30. Qa1 {[%clk 0:00:52]}  h6 {[%clk 0:00:48]} 31. Nf3 {[%clk 0:00:49]}  Qf6 {[%clk 0:00:43]} 32. Nh4 {[%clk 0:00:47]}  Bg4 {[%clk 0:00:41]} 33. e4 {[%clk 0:00:43]}  g5 {[%clk 0:00:37]} 34. Nf5 {[%clk 0:00:40]}  Bxf5 {[%clk 0:00:37]} 35. exf5 {[%clk 0:00:41]}  Rcb3 {[%clk 0:00:35]} 36. Qa7 {[%clk 0:00:33]}  c4 {[%clk 0:00:35]} 37. Qc7 {[%clk 0:00:32]}  c3 {[%clk 0:00:35]} 38. Be4 {[%clk 0:00:32]}  Kf8 {[%clk 0:00:24]} 39. Re1 {[%clk 0:00:30]}  h5 {[%clk 0:00:18]} 40. Bc2 {[%clk 0:00:23]}  R3b7 {[%clk 0:00:18]} 41. Qc4 {[%clk 0:00:22]}  Rb4 {[%clk 0:00:17]} 42. Qc7 {[%clk 0:00:22]}  R4b7 {[%clk 0:00:17]} 43. Qc4 {[%clk 0:00:19]}  Rb2 {[%clk 0:00:12]} 44. Bd3 {[%clk 0:00:12]}  Rd2 {[%clk 0:00:11]} 45. Re6 {[%clk 0:00:10]}  Qf7 {[%clk 0:00:05]} 46. Qxc3 {[%clk 0:00:09]}  Rd1+ {[%clk 0:00:05]} 47. Kg2 {[%clk 0:00:09]}  h4 {[%clk 0:00:03]} 48. f6 {[%clk 0:00:05]}  Qh5 {[%clk 0:00:01]} 49. fxe7+ {[%clk 0:00:05]}  Kg8 {[%clk 0:00:02]} 50. Rg6+ {[%clk 0:00:04]}  Kf7 {[%clk 0:00:00]} 51. Rg7+ {[%clk 0:00:01]} 1-0

[Event "December 5 Late 2023"]
[Site "https://www.chess.com"]
[Date "2023.12.05"]
[Round "10"]
[White "Seemann, Jakub"]
[Black "Kazakouski, Valery"]
[Result "0-1"]
[Board "21"]
[TimeControl "180+1"]
[WhiteFideId "21874697"]
[BlackFideId "13507443"]
[WhiteElo "2654"]
[BlackElo "2848"]
[WhiteTeam "POL"]
[BlackTeam "LTU"]
[WhiteClock "0:00:00"]
[BlackClock "0:00:26"]

1. c4 {[%clk 0:03:00]}  c6 {[%clk 0:02:58]} 2. d4 {[%clk 0:02:58]}  d5 {[%clk 0:02:58]} 3. Nf3 {[%clk 0:02:58]}  Nf6 {[%clk 0:02:58]} 4. Nc3 {[%clk 0:02:58]}  dxc4 {[%clk 0:02:58]} 5. e4 {[%clk 0:02:49]}  b5 {[%clk 0:02:58]} 6. Be2 {[%clk 0:02:49]}  e6 {[%clk 0:02:52]} 7. O-O {[%clk 0:02:48]}  Bb7 {[%clk 0:02:51]} 8. a4 {[%clk 0:02:46]}  a6 {[%clk 0:02:51]} 9. e5 {[%clk 0:02:41]}  Nd5 {[%clk 0:02:51]} 10. Ne4 {[%clk 0:02:41]}  h6 {[%clk 0:02:47]} 11. Bd2 {[%clk 0:02:23]}  Nd7 {[%clk 0:02:46]} 12. b3 {[%clk 0:02:22]}  cxb3 {[%clk 0:02:45]} 13. Qxb3 {[%clk 0:02:23]}  b4 {[%clk 0:02:42]} 14. Rac1 {[%clk 0:02:12]}  a5 {[%clk 0:02:40]} 15. h4 {[%clk 0:02:04]}  Qb6 {[%clk 0:02:39]} 16. Be3 {[%clk 0:01:56]}  Be7 {[%clk 0:02:37]} 17. h5 {[%clk 0:01:56]}  O-O {[%clk 0:02:35]} 18. Nfd2 {[%clk 0:01:55]}  Ba6 {[%clk 0:02:32]} 19. Nc4 {[%clk 0:01:47]}  Bxc4 {[%clk 0:02:31]} 20. Rxc4 {[%clk 0:01:33]}  Rac8 {[%clk 0:02:27]} 21. Rfc1 {[%clk 0:01:28]}  Rc7 {[%clk 0:02:26]} 22. Bd2 {[%clk 0:01:11]}  c5 {[%clk 0:02:22]} 23. Qg3 {[%clk 0:01:03]}  Kh8 {[%clk 0:02:18]} 24. Nd6 {[%clk 0:00:16]}  cxd4 {[%clk 0:02:07]} 25. Rxc7 {[%clk 0:00:17]}  Nxc7 {[%clk 0:02:07]} 26. Bxh6 {[%clk 0:00:18]}  gxh6 {[%clk 0:02:01]} 27. Qf4 {[%clk 0:00:13]}  Bg5 {[%clk 0:01:59]} 28. Qe4 {[%clk 0:00:13]}  Bxc1 {[%clk 0:01:36]} 29. Bd3 {[%clk 0:00:13]}  f5 {[%clk 0:01:36]} 30. exf6 {[%clk 0:00:14]}  Nxf6 {[%clk 0:01:36]} 31. Qe5 {[%clk 0:00:11]}  Ne8 {[%clk 0:01:21]} 32. Nxe8 {[%clk 0:00:09]}  Qd8 {[%clk 0:01:10]} 33. Nd6 {[%clk 0:00:09]}  Qe7 {[%clk 0:01:00]} 34. Nf5 {[%clk 0:00:07]}  Bf4 {[%clk 0:00:47]} 35. Qe2 {[%clk 0:00:03]}  Qc7 {[%clk 0:00:41]} 36. g3 {[%clk 0:00:03]}  exf5 {[%clk 0:00:40]} 37. Qe6 {[%clk 0:00:03]}  Bxg3 {[%clk 0:00:35]} 38. Qxf5 {[%clk 0:00:02]}  Bh2+ {[%clk 0:00:32]} 39. Kh1 {[%clk 0:00:02]}  Qf4 {[%clk 0:00:29]} 40. Qg6 {[%clk 0:00:02]}  Qf3+ {[%clk 0:00:27]} 41. Kxh2 {[%clk 0:00:00]}  Ng4+ {[%clk 0:00:26]} 0-1

[Event "December 5 Late 2023"]
[Site "https://www.chess.com"]
[Date "2023.12.05"]
[Round "10"]
[White "Mendes Aaron Reeve"]
[Black "Rustemov, Alexander"]
[Result "1/2-1/2"]
[Board "22"]
[TimeControl "180+1"]
[WhiteFideId "25954938"]
[BlackFideId "4119002"]
[WhiteElo "2653"]
[BlackElo "2834"]
[WhiteTeam "CAN"]
[BlackTeam "RUS"]
[WhiteClock "0:00:20"]
[BlackClock "0:00:28"]

1. e4 {[%clk 0:03:00]}  e6 {[%clk 0:03:00]} 2. Nf3 {[%clk 0:02:58]}  d5 {[%clk 0:03:00]} 3. Nc3 {[%clk 0:02:59]}  dxe4 {[%clk 0:02:56]} 4. Nxe4 {[%clk 0:02:58]}  Bd7 {[%clk 0:02:57]} 5. d4 {[%clk 0:02:57]}  Bc6 {[%clk 0:02:56]} 6. Bd3 {[%clk 0:02:58]}  Nd7 {[%clk 0:02:57]} 7. c3 {[%clk 0:02:57]}  Ngf6 {[%clk 0:02:57]} 8. Nxf6+ {[%clk 0:02:55]}  Nxf6 {[%clk 0:02:57]} 9. O-O {[%clk 0:02:56]}  Bxf3 {[%clk 0:02:57]} 10. Qxf3 {[%clk 0:02:55]}  Qd5 {[%clk 0:02:58]} 11. Qxd5 {[%clk 0:02:53]}  Nxd5 {[%clk 0:02:59]} 12. Bg5 {[%clk 0:02:50]}  Be7 {[%clk 0:02:58]} 13. Bxe7 {[%clk 0:02:50]}  Kxe7 {[%clk 0:02:56]} 14. Be4 {[%clk 0:02:50]}  c6 {[%clk 0:02:56]} 15. a4 {[%clk 0:02:50]}  a5 {[%clk 0:02:54]} 16. Bf3 {[%clk 0:02:48]}  Rhd8 {[%clk 0:02:44]} 17. Rfe1 {[%clk 0:02:48]}  Kd6 {[%clk 0:02:40]} 18. g3 {[%clk 0:02:48]}  Kc7 {[%clk 0:02:39]} 19. Be4 {[%clk 0:02:48]}  h6 {[%clk 0:02:37]} 20. Kg2 {[%clk 0:02:47]}  Nb6 {[%clk 0:02:33]} 21. b3 {[%clk 0:02:45]}  Rd7 {[%clk 0:02:27]} 22. Rac1 {[%clk 0:02:42]}  Rad8 {[%clk 0:02:26]} 23. f4 {[%clk 0:02:42]}  g6 {[%clk 0:02:24]} 24. Kf3 {[%clk 0:02:40]}  h5 {[%clk 0:02:24]} 25. h3 {[%clk 0:02:40]}  Rh8 {[%clk 0:02:23]} 26. Rh1 {[%clk 0:02:37]}  Rdd8 {[%clk 0:02:22]} 27. g4 {[%clk 0:02:36]}  Nc8 {[%clk 0:02:18]} 28. Rce1 {[%clk 0:02:30]}  Nd6 {[%clk 0:02:17]} 29. Bc2 {[%clk 0:02:29]}  Rh7 {[%clk 0:02:16]} 30. f5 {[%clk 0:02:20]}  hxg4+ {[%clk 0:02:11]} 31. hxg4 {[%clk 0:02:19]}  Rxh1 {[%clk 0:02:11]} 32. Rxh1 {[%clk 0:02:19]}  gxf5 {[%clk 0:02:09]} 33. gxf5 {[%clk 0:02:19]}  exf5 {[%clk 0:02:07]} 34. Kf4 {[%clk 0:02:16]}  Re8 {[%clk 0:02:05]} 35. Bd3 {[%clk 0:02:16]}  Rg8 {[%clk 0:01:54]} 36. Rh7 {[%clk 0:02:11]}  Rg1 {[%clk 0:01:40]} 37. c4 {[%clk 0:02:09]}  Rd1 {[%clk 0:01:36]} 38. Ke3 {[%clk 0:02:09]}  Re1+ {[%clk 0:01:23]} 39. Kf4 {[%clk 0:02:01]}  Re7 {[%clk 0:01:22]} 40. Bxf5 {[%clk 0:02:00]}  b6 {[%clk 0:01:15]} 41. Bg6 {[%clk 0:01:43]}  c5 {[%clk 0:01:12]} 42. d5 {[%clk 0:01:39]}  Kd7 {[%clk 0:01:09]} 43. Bf5+ {[%clk 0:01:38]}  Kc7 {[%clk 0:01:05]} 44. Be6 {[%clk 0:01:32]}  Kd8 {[%clk 0:00:53]} 45. Rh8+ {[%clk 0:01:18]}  Re8 {[%clk 0:00:53]} 46. Rxe8+ {[%clk 0:01:17]}  Kxe8 {[%clk 0:00:53]} 47. Ke5 {[%clk 0:01:08]}  Ke7 {[%clk 0:00:53]} 48. Bf5 {[%clk 0:01:08]}  f6+ {[%clk 0:00:54]} 49. Kf4 {[%clk 0:01:08]}  Nf7 {[%clk 0:00:51]} 50. Bc2 {[%clk 0:01:03]}  Ne5 {[%clk 0:00:49]} 51. Kf5 {[%clk 0:01:04]}  Nf7 {[%clk 0:00:47]} 52. Bd1 {[%clk 0:01:03]}  Nd6+ {[%clk 0:00:47]} 53. Kg6 {[%clk 0:01:02]}  Ne4 {[%clk 0:00:46]} 54. Bc2 {[%clk 0:01:02]}  Nd2 {[%clk 0:00:42]} 55. Bd1 {[%clk 0:00:59]}  Nf1 {[%clk 0:00:37]} 56. Bc2 {[%clk 0:00:55]}  Ne3 {[%clk 0:00:36]} 57. Bd3 {[%clk 0:00:54]}  Ng4 {[%clk 0:00:37]} 58. Be2 {[%clk 0:00:53]}  Ne5+ {[%clk 0:00:36]} 59. Kf5 {[%clk 0:00:53]}  Nf7 {[%clk 0:00:35]} 60. Bh5 {[%clk 0:00:52]}  Nd6+ {[%clk 0:00:35]} 61. Kf4 {[%clk 0:00:52]}  Kf8 {[%clk 0:00:34]} 62. Bg6 {[%clk 0:00:51]}  Kg7 {[%clk 0:00:35]} 63. Bf5 {[%clk 0:00:51]}  Kh6 {[%clk 0:00:36]} 64. Bg4 {[%clk 0:00:51]}  Kg6 {[%clk 0:00:36]} 65. Be2 {[%clk 0:00:51]}  Nf7 {[%clk 0:00:34]} 66. Bd3+ {[%clk 0:00:50]}  f5 {[%clk 0:00:32]} 67. Bxf5+ {[%clk 0:00:50]}  Kf6 {[%clk 0:00:32]} 68. Be4 {[%clk 0:00:48]}  Nd6 {[%clk 0:00:33]} 69. Bf3 {[%clk 0:00:48]}  Nf7 {[%clk 0:00:33]} 70. Bg4 {[%clk 0:00:47]}  Nd6 {[%clk 0:00:33]} 71. Bh5 {[%clk 0:00:48]}  Nc8 {[%clk 0:00:31]} 72. Be8 {[%clk 0:00:40]}  Nd6 {[%clk 0:00:32]} 73. Bd7 {[%clk 0:00:40]}  Nf7 {[%clk 0:00:32]} 74. Bc6 {[%clk 0:00:36]}  Nd6 {[%clk 0:00:32]} 75. Bb5 {[%clk 0:00:34]}  Nf5 {[%clk 0:00:32]} 76. Ke4 {[%clk 0:00:29]}  Nd6+ {[%clk 0:00:30]} 77. Ke3 {[%clk 0:00:27]}  Ke5 {[%clk 0:00:29]} 78. Bd7 {[%clk 0:00:27]}  Ne4 {[%clk 0:00:28]} 79. Kd3 {[%clk 0:00:26]}  Nf2+ {[%clk 0:00:28]} 80. Kc2 {[%clk 0:00:25]}  Ne4 {[%clk 0:00:29]} 81. Bc6 {[%clk 0:00:24]}  Kd4 {[%clk 0:00:28]} 82. Kb2 {[%clk 0:00:24]}  Nd6 {[%clk 0:00:28]} 83. Kc2 {[%clk 0:00:24]}  Ke5 {[%clk 0:00:28]} 84. Kd3 {[%clk 0:00:24]}  Ne4 {[%clk 0:00:29]} 85. Ke3 {[%clk 0:00:24]}  Nd6 {[%clk 0:00:29]} 86. Bd7 {[%clk 0:00:23]}  Kf6 {[%clk 0:00:28]} 87. Kf4 {[%clk 0:00:23]}  Ke7 {[%clk 0:00:29]} 88. Bg4 {[%clk 0:00:20]}  Kf6 {[%clk 0:00:29]} 89. Be6 {[%clk 0:00:20]}  Ne8 {[%clk 0:00:28]} 90. Bg4 {[%clk 0:00:20]}  Nd6 {[%clk 0:00:28]} 1/2-1/2

[Event "December 5 Late 2023"]
[Site "https://www.chess.com"]
[Date "2023.12.05"]
[Round "10"]
[White "Gabuzyan, Hovhannes"]
[Black "Omelja, Artem"]
[Result "1-0"]
[Board "24"]
[TimeControl "180+1"]
[WhiteFideId "13303732"]
[BlackFideId "14119846"]
[WhiteElo "2830"]
[BlackElo "2643"]
[WhiteTeam "ARM"]
[BlackTeam "UKR"]
[WhiteClock "0:01:14"]
[BlackClock "0:00:05"]

1. e4 {[%clk 0:03:00]}  e5 {[%clk 0:02:58]} 2. Nf3 {[%clk 0:03:00]}  Nc6 {[%clk 0:02:59]} 3. Bb5 {[%clk 0:03:00]}  a6 {[%clk 0:02:59]} 4. Ba4 {[%clk 0:03:00]}  Nge7 {[%clk 0:02:59]} 5. O-O {[%clk 0:03:00]}  Ng6 {[%clk 0:02:54]} 6. c4 {[%clk 0:03:00]}  Bc5 {[%clk 0:02:53]} 7. Nc3 {[%clk 0:02:59]}  O-O {[%clk 0:02:54]} 8. d3 {[%clk 0:02:59]}  d6 {[%clk 0:02:54]} 9. Be3 {[%clk 0:02:58]}  Bd7 {[%clk 0:02:45]} 10. Bxc6 {[%clk 0:02:57]}  Bxc6 {[%clk 0:02:44]} 11. d4 {[%clk 0:02:57]}  exd4 {[%clk 0:02:45]} 12. Nxd4 {[%clk 0:02:58]}  Bd7 {[%clk 0:02:45]} 13. f4 {[%clk 0:02:57]}  Re8 {[%clk 0:02:44]} 14. Qd3 {[%clk 0:02:53]}  c6 {[%clk 0:02:33]} 15. Kh1 {[%clk 0:02:50]}  b5 {[%clk 0:02:33]} 16. Nc2 {[%clk 0:02:40]}  bxc4 {[%clk 0:01:45]} 17. Qxc4 {[%clk 0:02:40]}  Bxe3 {[%clk 0:01:45]} 18. Nxe3 {[%clk 0:02:41]}  d5 {[%clk 0:01:45]} 19. Qd4 {[%clk 0:02:36]}  dxe4 {[%clk 0:01:38]} 20. Rad1 {[%clk 0:02:32]}  Nf8 {[%clk 0:01:19]} 21. f5 {[%clk 0:02:26]}  Rb8 {[%clk 0:01:15]} 22. f6 {[%clk 0:02:22]}  g6 {[%clk 0:01:11]} 23. Nxe4 {[%clk 0:02:22]}  Qb6 {[%clk 0:01:10]} 24. Nc5 {[%clk 0:01:47]}  Be6 {[%clk 0:00:57]} 25. b3 {[%clk 0:01:35]}  Rbd8 {[%clk 0:00:53]} 26. Qf4 {[%clk 0:01:16]}  Rxd1 {[%clk 0:00:16]} 27. Rxd1 {[%clk 0:01:14]}  g5 {[%clk 0:00:05]} 1-0

[Event "December 5 Late 2023"]
[Site "https://www.chess.com"]
[Date "2023.12.05"]
[Round "10"]
[White "Hambleton, Aman"]
[Black "Troff, Kayden"]
[Result "0-1"]
[Board "27"]
[TimeControl "180+1"]
[WhiteFideId "2606577"]
[BlackFideId "2047896"]
[WhiteElo "2710"]
[BlackElo "2782"]
[WhiteTeam "CAN"]
[BlackTeam "USA"]
[WhiteClock "0:00:00"]
[BlackClock "0:00:12"]

1. e4 {[%clk 0:03:00]}  c5 {[%clk 0:03:00]} 2. g3 {[%clk 0:02:59]}  g6 {[%clk 0:02:59]} 3. Bg2 {[%clk 0:02:59]}  Bg7 {[%clk 0:03:00]} 4. d3 {[%clk 0:03:00]}  Nc6 {[%clk 0:03:00]} 5. Nd2 {[%clk 0:03:00]}  b5 {[%clk 0:02:57]} 6. Ngf3 {[%clk 0:02:59]}  d6 {[%clk 0:02:56]} 7. O-O {[%clk 0:02:51]}  Rb8 {[%clk 0:02:54]} 8. Re1 {[%clk 0:02:26]}  Nf6 {[%clk 0:02:41]} 9. e5 {[%clk 0:02:14]}  Nxe5 {[%clk 0:02:41]} 10. Nxe5 {[%clk 0:02:15]}  dxe5 {[%clk 0:02:41]} 11. Rxe5 {[%clk 0:02:16]}  c4 {[%clk 0:02:37]} 12. dxc4 {[%clk 0:01:07]}  bxc4 {[%clk 0:02:37]} 13. c3 {[%clk 0:01:07]}  O-O {[%clk 0:02:31]} 14. Re1 {[%clk 0:01:01]}  Be6 {[%clk 0:01:56]} 15. Rxe6 {[%clk 0:00:49]}  fxe6 {[%clk 0:01:56]} 16. Qe2 {[%clk 0:00:50]}  Qd3 {[%clk 0:01:44]} 17. Qxe6+ {[%clk 0:00:17]}  Kh8 {[%clk 0:01:43]} 18. Qxc4 {[%clk 0:00:18]}  Qc2 {[%clk 0:01:14]} 19. Qe2 {[%clk 0:00:04]}  Rfd8 {[%clk 0:01:11]} 20. Bf1 {[%clk 0:00:03]}  Nd5 {[%clk 0:01:01]} 21. Ne4 {[%clk 0:00:02]}  Qa4 {[%clk 0:00:57]} 22. Bg5 {[%clk 0:00:02]}  h6 {[%clk 0:00:55]} 23. Bc1 {[%clk 0:00:01]}  Kh7 {[%clk 0:00:54]} 24. h4 {[%clk 0:00:01]}  Rb6 {[%clk 0:00:24]} 25. Qg4 {[%clk 0:00:01]}  Kh8 {[%clk 0:00:21]} 26. h5 {[%clk 0:00:01]}  gxh5 {[%clk 0:00:20]} 27. Qe2 {[%clk 0:00:01]}  Re6 {[%clk 0:00:19]} 28. Nc5 {[%clk 0:00:01]}  Rxe2 {[%clk 0:00:18]} 29. Nxa4 {[%clk 0:00:01]}  Re1 {[%clk 0:00:18]} 30. Kg2 {[%clk 0:00:01]}  Nb6 {[%clk 0:00:15]} 31. Nc5 {[%clk 0:00:01]}  Rdd1 {[%clk 0:00:15]} 32. Nd3 {[%clk 0:00:02]}  Rxf1 {[%clk 0:00:14]} 33. a4 {[%clk 0:00:02]}  Nc4 {[%clk 0:00:13]} 34. b3 {[%clk 0:00:01]}  Ne5 {[%clk 0:00:11]} 35. Nxe5 {[%clk 0:00:01]}  Bxe5 {[%clk 0:00:12]} 36. Be3 {[%clk 0:00:00]}  Rxa1 {[%clk 0:00:12]} 0-1

[Event "December 5 Late 2023"]
[Site "https://www.chess.com"]
[Date "2023.12.05"]
[Round "10"]
[White "Kopczynski, Michal"]
[Black "Adewumi, Tanitoluwa"]
[Result "1-0"]
[Board "28"]
[TimeControl "180+1"]
[WhiteFideId "1124200"]
[BlackFideId "30966396"]
[WhiteElo "2565"]
[BlackElo "2744"]
[WhiteTeam "POL"]
[BlackTeam "USA"]
[WhiteClock "0:00:15"]
[BlackClock "0:00:02"]

1. e4 {[%clk 0:03:00]}  c5 {[%clk 0:02:58]} 2. d4 {[%clk 0:03:01]}  cxd4 {[%clk 0:02:58]} 3. c3 {[%clk 0:03:01]}  dxc3 {[%clk 0:02:58]} 4. Nxc3 {[%clk 0:03:02]}  Nc6 {[%clk 0:02:58]} 5. f4 {[%clk 0:03:03]}  e6 {[%clk 0:02:59]} 6. Nf3 {[%clk 0:03:04]}  Bb4 {[%clk 0:02:59]} 7. Bd3 {[%clk 0:03:04]}  d5 {[%clk 0:02:59]} 8. e5 {[%clk 0:03:04]}  d4 {[%clk 0:02:49]} 9. a3 {[%clk 0:03:03]}  dxc3 {[%clk 0:02:37]} 10. axb4 {[%clk 0:03:03]}  Nxb4 {[%clk 0:02:38]} 11. Qa4+ {[%clk 0:02:37]}  Nc6 {[%clk 0:02:31]} 12. Be4 {[%clk 0:02:30]}  Ne7 {[%clk 0:02:28]} 13. bxc3 {[%clk 0:02:27]}  Qb6 {[%clk 0:02:28]} 14. Rb1 {[%clk 0:02:21]}  Qc5 {[%clk 0:02:26]} 15. Rb5 {[%clk 0:02:08]}  Qxc3+ {[%clk 0:02:20]} 16. Bd2 {[%clk 0:02:08]}  Nd5 {[%clk 0:02:04]} 17. Bxc3 {[%clk 0:01:22]}  Nxc3 {[%clk 0:02:04]} 18. Qc4 {[%clk 0:01:22]}  Nxb5 {[%clk 0:02:03]} 19. Qxb5 {[%clk 0:01:23]}  O-O {[%clk 0:01:56]} 20. O-O {[%clk 0:01:13]}  a5 {[%clk 0:01:53]} 21. Bxc6 {[%clk 0:01:03]}  bxc6 {[%clk 0:01:52]} 22. Qxc6 {[%clk 0:01:04]}  Ba6 {[%clk 0:01:50]} 23. Ra1 {[%clk 0:01:03]}  Bd3 {[%clk 0:01:40]} 24. Qc3 {[%clk 0:01:01]}  Be4 {[%clk 0:01:36]} 25. Nd2 {[%clk 0:00:55]}  Bd5 {[%clk 0:01:31]} 26. Rxa5 {[%clk 0:00:55]}  Rxa5 {[%clk 0:01:26]} 27. Qxa5 {[%clk 0:00:56]}  Ra8 {[%clk 0:01:26]} 28. Qc5 {[%clk 0:00:53]}  h5 {[%clk 0:01:23]} 29. f5 {[%clk 0:00:52]}  Ra2 {[%clk 0:01:19]} 30. Qd4 {[%clk 0:00:49]}  Rc2 {[%clk 0:01:07]} 31. f6 {[%clk 0:00:48]}  Rc1+ {[%clk 0:00:56]} 32. Kf2 {[%clk 0:00:48]}  Rd1 {[%clk 0:00:56]} 33. fxg7 {[%clk 0:00:44]}  Kxg7 {[%clk 0:00:54]} 34. Qf4 {[%clk 0:00:44]}  h4 {[%clk 0:00:45]} 35. Nf1 {[%clk 0:00:36]}  Rb1 {[%clk 0:00:28]} 36. Ne3 {[%clk 0:00:27]}  Rb2+ {[%clk 0:00:28]} 37. Ke1 {[%clk 0:00:26]}  Bb7 {[%clk 0:00:20]} 38. Qxh4 {[%clk 0:00:24]}  Rb1+ {[%clk 0:00:20]} 39. Kd2 {[%clk 0:00:24]}  Rb2+ {[%clk 0:00:20]} 40. Kc3 {[%clk 0:00:24]}  Rb5 {[%clk 0:00:17]} 41. Qf6+ {[%clk 0:00:22]}  Kf8 {[%clk 0:00:18]} 42. g4 {[%clk 0:00:21]}  Rc5+ {[%clk 0:00:15]} 43. Kd4 {[%clk 0:00:21]}  Rc1 {[%clk 0:00:13]} 44. g5 {[%clk 0:00:21]}  Rg1 {[%clk 0:00:09]} 45. h4 {[%clk 0:00:21]}  Ke8 {[%clk 0:00:04]} 46. h5 {[%clk 0:00:21]}  Bc6 {[%clk 0:00:03]} 47. g6 {[%clk 0:00:20]}  fxg6 {[%clk 0:00:03]} 48. Qxe6+ {[%clk 0:00:20]}  Kf8 {[%clk 0:00:03]} 49. Qf6+ {[%clk 0:00:19]}  Kg8 {[%clk 0:00:02]} 50. Qxc6 {[%clk 0:00:17]}  gxh5 {[%clk 0:00:03]} 51. e6 {[%clk 0:00:17]}  Rg5 {[%clk 0:00:01]} 52. e7 {[%clk 0:00:17]}  Rd5+ {[%clk 0:00:01]} 53. Qxd5+ {[%clk 0:00:17]}  Kg7 {[%clk 0:00:01]} 54. e8=Q {[%clk 0:00:17]}  h4 {[%clk 0:00:02]} 55. Qg5+ {[%clk 0:00:16]}  Kh7 {[%clk 0:00:02]} 56. Qeg8# {[%clk 0:00:15]} 1-0